bitfinex/quotes_ETHUSD_20220111
["timestamp","ask_amount","ask_price","bid_price","bid_amount"]
[1641922672073,1.0,3223.4,3222.1,1.55116]
[1641922672272,1.11782514,3222.9,3222.7,0.00397897]
[1641922672677,0.57533247,3222.8,3222.7,0.00397897]
[1641922673272,0.57533247,3222.8,3222.4,0.00568424]
[1641922673875,0.57533247,3222.8,3222.5,0.77567]
[1641922674076,0.57533247,3222.8,3222.6,0.08434542]
[1641922674281,0.57533247,3222.8,3222.6,0.08889281]
[1641922674473,0.57533247,3222.8,3222.6,0.00454739]
[1641922674675,0.57533247,3222.8,3222.6,0.05772554]
[1641922674975,0.57533247,3222.8,3222.6,0.00454739]
[1641922675173,0.57533247,3222.8,3222.6,0.30454739]
[1641922676129,0.57533247,3222.8,3222.6,0.00454739]
[1641922677531,0.57533247,3222.8,3222.7,2.64141028]
[1641922679883,0.57533247,3222.8,3222.6,0.30454739]
[1641922680285,0.57533247,3222.8,3222.6,0.00454739]
[1641922680684,0.57533247,3222.8,3221.6,1.54851301]
[1641922680685,0.57533247,3222.8,3222.4,0.00568424]
[1641922680886,0.57533247,3222.8,3221.6,1.54851301]
[1641922680887,0.57533247,3222.8,3222.7,2.64158982]
[1641922681488,5.47533247,3222.8,3222.7,2.64158982]
[1641922681688,6.47533247,3222.8,3222.1,1.54851301]
[1641922681887,0.88592236,3222.3,3222.1,1.54851301]
[1641922682098,0.88592236,3222.3,3222.2,0.00682108]
[1641922682489,0.88592236,3222.3,3221.7,0.0096632]
[1641922683122,0.46888076,3222.2,3221.7,0.0096632]
[1641922683520,0.46888076,3222.2,3221.6,0.01023162]
[1641922684729,0.46888076,3222.2,3221.7,0.082374]
[1641922684922,0.88592236,3222.3,3221.7,1.55182]
[1641922685221,0.47729216,3222.2,3221.8,0.00909478]
[1641922685424,4.0286,3222.7,3221.8,0.00909478]
[1641922685624,4.0286,3222.7,3221.9,0.04830569]
[1641922685821,4.0286,3222.7,3221.9,0.373]
[1641922686034,4.0286,3222.7,3222.2,1.55148]
[1641922686224,4.0286,3222.7,3222.2,1.07578]
[1641922686422,4.0286,3222.7,3222.3,0.70436066]
[1641922686674,4.0286,3222.7,3222.3,2.25558066]
[1641922686875,4.87367462,3223.8,3222.5,0.08209387]
[1641922687075,4.99272922,3223.7,3222.7,0.77569]
[1641922687279,0.55626156,3223.6,3222.7,0.77569]
[1641922687479,0.48833174,3222.6,3222.5,0.6980658]
[1641922687678,0.48833174,3222.6,3222.5,2.2491458]
[1641922687875,0.8248192,3223.1,3222.5,2.55085107]
[1641922688075,0.8248192,3223.1,3222.8,0.77556]
[1641922688275,0.00113684,3223.0,3222.9,0.06820332]
[1641922688475,0.00113684,3223.0,3222.8,1.7735618]
[1641922688676,0.00113684,3223.0,3222.8,1.4735618]
[1641922688979,0.00113684,3223.0,3222.8,2.2491218]
[1641922689274,0.46633507,3223.0,3222.8,2.5491218]
[1641922689976,0.46633507,3223.0,3222.9,0.3]
[1641922690181,0.00113684,3223.0,3222.9,0.3]
[1641922690438,3.99272922,3223.7,3223.0,6.55]
[1641922690730,0.00341054,3223.6,3223.3,0.7754]
[1641922690931,0.00341054,3223.6,3223.3,1.3754]
[1641922691130,0.00284212,3223.5,3223.3,1.3754]
[1641922691536,0.0022737,3223.4,3223.3,1.94425314]
[1641922691731,0.0022737,3223.4,3223.3,1.3754]
[1641922692129,0.0022737,3223.4,3223.3,2.15082]
[1641922692340,0.3,3224.0,3223.3,2.15082]
[1641922692341,0.3,3224.0,3223.7,0.77526]
[1641922692532,0.3,3224.0,3223.8,0.43385865]
[1641922692732,0.26420827,3225.4,3224.0,6.55]
[1641922692933,0.26420827,3225.4,3224.1,0.06089762]
[1641922692934,4.0946,3225.3,3224.1,0.06089762]
[1641922693133,0.00454739,3224.2,3224.0,7.43139259]
[1641922693333,5.16501141,3225.3,3224.3,2.32516]
[1641922693534,5.16501141,3225.3,3224.7,0.0579886]
[1641922693535,4.0946,3225.3,3224.7,0.0579886]
[1641922693736,4.0946,3225.3,3224.7,1.1284825]
[1641922693935,4.0946,3225.3,3224.8,0.04522659]
[1641922694179,4.0946,3225.3,3224.9,5.3]
[1641922694381,0.01267421,3226.0,3225.4,0.77497]
[1641922694582,0.01267421,3226.0,3225.5,0.05496443]
[1641922694583,1.03494735,3225.7,3225.5,0.05496443]
[1641922694788,1.03494735,3225.7,3223.8,5.79801]
[1641922695088,0.00795792,3225.6,3224.3,0.9976697]
[1641922695382,0.0073895,3225.5,3223.9,2.09442638]
[1641922695582,0.0073895,3225.5,3224.9,0.77512]
[1641922695781,0.00682108,3225.4,3224.9,0.77512]
[1641922695982,0.00682108,3225.4,3225.0,0.04598627]
[1641922696183,3.2848,3226.2,3224.9,0.9975335]
[1641922696184,0.00625265,3225.3,3224.9,0.9975335]
[1641922696384,0.00625265,3225.3,3225.0,0.3]
[1641922696584,0.00568423,3225.2,3225.1,0.77498]
[1641922697185,0.00568423,3225.2,3225.0,3.39992]
[1641922697483,0.00511581,3225.1,3225.0,3.39992]
[1641922698032,0.00511581,3225.1,3225.0,3.69992]
[1641922698432,0.00511581,3225.1,3225.0,7.84992]
[1641922700634,0.00511581,3225.1,3225.0,7.54992]
[1641922700837,1.05201714,3225.2,3225.0,1.54996]
[1641922701137,1.05201714,3225.2,3224.3,1.55018]
[1641922701138,1.05201714,3225.2,3224.7,1.55032]
[1641922701436,1.05201714,3225.2,3223.9,3.6099211]
[1641922701437,0.99288857,3224.5,3223.9,0.373]
[1641922701875,9.799608,3226.0,3223.9,0.373]
[1641922701876,0.60070051,3224.3,3224.0,0.78149266]
[1641922702077,5.999108,3226.0,3224.0,2.17684166]
[1641922702274,3.71944738,3225.9,3225.0,0.77516]
[1641922702479,0.00454738,3225.9,3225.1,0.05792052]
[1641922702674,4.846208,3226.0,3225.0,0.77516]
[1641922702675,0.00397896,3225.8,3225.0,0.77516]
[1641922702874,0.91791255,3225.1,3225.0,0.77516]
[1641922704074,0.91791255,3225.1,3224.7,1.55031]
[1641922704475,0.91791255,3225.1,3224.8,0.00170527]
[1641922705926,0.91791255,3225.1,3224.6,0.00284212]
[1641922706330,0.93050835,3225.1,3224.6,0.00284212]
[1641922706724,0.93050835,3225.1,3224.1,1.55058]
[1641922706725,1.07822818,3224.3,3224.2,0.00511581]
[1641922706927,0.0125958,3225.1,3224.2,0.00511581]
[1641922707826,0.0125958,3225.1,3224.3,0.77534]
[1641922708223,0.96295533,3224.6,3224.4,0.00397897]
[1641922708428,0.55226295,3224.5,3224.4,0.00397897]
[1641922709890,1.4953054,3224.5,3224.4,0.00397897]
[1641922710293,5.5453054,3224.5,3223.9,0.00682109]
[1641922710591,5.5453054,3224.5,3223.5,0.00909478]
[1641922710592,0.95669221,3223.7,3223.5,0.00909478]
[1641922710893,0.60515685,3223.7,3223.6,1.55086]
[1641922711293,1.2191,3224.7,3223.6,1.55086]
[1641922711294,1.2191,3224.7,3223.6,5.90938636]
[1641922711490,0.447,3224.7,3223.6,6.20938636]
[1641922711690,1.09948053,3224.1,3223.7,0.00795793]
[1641922711891,1.09948053,3224.1,3223.8,0.77541]
[1641922712291,1.09948053,3224.1,3223.9,0.00682109]
[1641922712591,0.53173957,3224.0,3223.9,0.00682109]
[1641922714131,0.53173957,3224.0,3223.9,3.55682109]
[1641922714330,0.447,3224.7,3223.9,3.55682109]
[1641922714530,2.3788958,3225.1,3224.0,0.07116759]
[1641922714730,0.0125958,3225.1,3224.3,0.77534]
[1641922714930,0.0125958,3225.1,3224.4,0.06808835]
[1641922715129,4.3577,3225.2,3224.5,0.3]
[1641922715329,4.3577,3225.2,3224.5,0.30341054]
[1641922715529,1.05044717,3224.6,3224.5,0.3]
[1641922715929,1.05044717,3224.6,3224.5,0.30341054]
[1641922717482,1.05044717,3224.6,3224.5,0.00341054]
[1641922717880,1.05044717,3224.6,3224.2,0.00511581]
[1641922719683,1.05044717,3224.6,3224.1,0.30568424]
[1641922719883,1.05044717,3224.6,3224.2,0.00511581]
[1641922720087,1.05044717,3224.6,3224.2,0.78048581]
[1641922720285,1.05044717,3224.6,3224.4,0.08696154]
[1641922720732,1.05044717,3224.6,3224.3,0.30454739]
[1641922721129,1.05044717,3224.6,3224.4,0.00397897]
[1641922721333,4.3577,3225.2,3224.4,0.00397897]
[1641922721537,3.9107,3225.2,3224.5,0.08513343]
[1641922721730,3.9107,3225.2,3224.4,1.85433897]
[1641922721931,3.9107,3225.2,3224.7,0.04969453]
[1641922722131,3.9107,3225.2,3224.8,0.77515]
[1641922722335,0.96097735,3225.3,3224.9,0.06297856]
[1641922722531,0.96097735,3225.3,3224.9,0.00113685]
[1641922722733,0.96097735,3225.3,3224.9,0.77626685]
[1641922722931,0.96097735,3225.3,3225.0,0.3]
[1641922723333,0.96097735,3225.3,3224.9,0.00113685]
[1641922724178,0.96097735,3225.3,3225.0,0.77514]
[1641922724377,0.96097735,3225.3,3225.0,1.85029]
[1641922724779,0.96097735,3225.3,3225.0,0.77515]
[1641922724983,0.96097735,3225.3,3224.9,0.00113685]
[1641922725377,0.96097735,3225.3,3224.7,0.0022737]
[1641922725581,0.90684935,3224.8,3224.7,0.0022737]
[1641922725776,1.51800667,3224.8,3224.7,0.0022737]
[1641922726177,1.51800667,3224.8,3224.7,0.7775437]
[1641922726377,1.51800667,3224.8,3224.7,0.0022737]
[1641922726979,1.51800667,3224.8,3224.6,0.00284212]
[1641922727182,1.51800667,3224.8,3224.3,0.00454739]
[1641922728232,1.51800667,3224.8,3224.1,0.3]
[1641922728435,0.61115732,3224.8,3224.1,0.30568424]
[1641922728647,0.61115732,3224.8,3224.2,0.00511581]
[1641922728832,0.98779147,3224.3,3224.2,0.00511581]
[1641922729031,1.56875016,3224.3,3224.2,0.00511581]
[1641922730134,0.58095869,3224.3,3224.2,0.00511581]
[1641922731533,0.53095869,3224.3,3224.2,0.00511581]
[1641922731982,1.45651491,3224.3,3224.2,0.00511581]
[1641922738325,1.45651491,3224.3,3224.1,0.00568424]
[1641922738827,1.45651491,3224.3,3224.1,0.30568424]
[1641922739279,1.45651491,3224.3,3224.2,0.00511581]
[1641922752732,6.60651491,3224.3,3224.2,0.00511581]
[1641922752931,25.17351491,3224.3,3224.2,0.00511581]
[1641922753135,26.17351491,3224.3,3223.8,0.00738951]
[1641922753332,1.0,3224.2,3223.4,0.0096632]
[1641922753531,0.447,3224.1,3223.3,0.01023163]
[1641922754180,18.12,3224.0,3223.3,0.01023163]
[1641922754382,18.12,3224.0,3223.3,0.31023163]
[1641922754580,1.0,3223.9,3223.3,0.01023163]
[1641922754781,1.0,3223.9,3223.4,0.0096632]
[1641922755082,19.12,3223.9,3223.3,0.01023163]
[1641922755282,0.51627331,3223.8,3223.4,2.64050852]
[1641922755482,0.51627331,3223.8,3223.4,2.94050852]
[1641922755689,1.11013048,3223.7,3223.5,0.00909478]
[1641922756882,1.11013048,3223.7,3223.3,0.01023163]
[1641922760432,3.9179874,3223.6,3223.3,0.01023163]
[1641922760633,1.11013048,3223.7,3223.3,0.01023163]
[1641922760634,2.11013048,3223.7,3223.3,0.01023163]
[1641922760836,1.0,3223.5,3223.3,0.01023163]
[1641922761031,1.0,3223.5,3222.9,0.01250532]
[1641922761433,0.86833042,3223.0,3222.9,0.01250532]
[1641922761685,1.3733898,3223.0,3222.9,0.01250532]
[1641922762287,1.3733898,3223.0,3222.5,0.01477901]
[1641922762486,1.3733898,3223.0,3222.3,0.01591586]
[1641922762887,1.13436983,3222.4,3222.3,0.01591586]
[1641922763088,1.60284456,3222.4,3222.3,0.01591586]
[1641922764894,1.1555,3223.8,3222.6,0.7758]
[1641922764895,1.1462,3223.3,3222.6,0.7758]
[1641922765093,4.1139,3223.4,3222.7,0.77569]
[1641922765292,4.1139,3223.4,3222.8,1.55136]
[1641922765529,4.1139,3223.4,3222.8,1.56443374]
[1641922765730,4.1139,3223.4,3222.9,0.01250532]
[1641922765933,1.5328174,3223.3,3222.9,0.01250532]
[1641922766530,1.5328174,3223.3,3222.4,1.55145]
[1641922766531,1.57261883,3223.3,3222.1,0.01705271]
[1641922766728,0.90573988,3222.6,3222.5,0.01477901]
[1641922766930,0.90573988,3222.6,3222.4,0.77582]
[1641922767130,0.90573988,3222.6,3222.5,0.01477901]
[1641922767335,1.36994256,3222.6,3222.5,0.01477901]
[1641922767732,1.36994256,3222.6,3222.2,1.55156]
[1641922767935,1.36994256,3222.6,3222.3,0.31591586]
[1641922768231,1.36994256,3222.6,3222.4,0.01534744]
[1641922768638,1.05212698,3222.1,3221.8,0.01875798]
[1641922769034,0.45774848,3222.0,3221.8,0.01875798]
[1641922769287,0.45774848,3222.0,3221.6,0.01989482]
[1641922769487,0.45774848,3222.0,3221.5,0.02046325]
[1641922770087,1.11653878,3221.6,3221.2,0.02216852]
[1641922770384,0.44440531,3221.5,3221.2,0.02216852]
[1641922770887,0.44440531,3221.5,3221.3,2.32803]
[1641922771086,0.44440531,3221.5,3221.3,2.62803]
[1641922771288,0.44440531,3221.5,3221.4,3.27103167]
[1641922772285,1.0,3222.2,3221.4,3.27103167]
[1641922772490,9.2746,3222.3,3221.5,0.06882376]
[1641922772491,4.0621,3222.3,3221.5,0.06882376]
[1641922772685,4.0621,3222.3,3221.5,0.02046325]
[1641922772933,1.1291,3223.1,3222.3,0.77577]
[1641922772934,4.71652954,3223.1,3222.3,0.77577]
[1641922773139,3.72552954,3223.6,3222.5,1.55144]
[1641922773334,0.87173891,3223.0,3222.4,0.01534744]
[1641922773535,0.03081816,3223.1,3222.6,0.01421059]
[1641922773536,0.58164669,3222.9,3222.6,0.01421059]
[1641922773736,0.58164669,3222.9,3222.0,0.31762113]
[1641922773737,0.85424466,3222.5,3222.0,0.31762113]
[1641922773941,0.2632043,3223.1,3221.6,0.77595]
[1641922774134,0.2632043,3223.1,3222.1,0.01705271]
[1641922774334,0.2632043,3223.1,3221.7,0.0193264]
[1641922774534,0.2632043,3223.1,3221.6,0.01989482]
[1641922774736,0.03310504,3223.9,3221.7,0.08136867]
[1641922774942,0.94109308,3223.2,3222.3,0.06432257]
[1641922775138,0.94109308,3223.2,3222.5,0.05288413]
[1641922775339,0.94109308,3223.2,3222.4,1.09109744]
[1641922775538,0.94109308,3223.2,3222.6,0.01421059]
[1641922775735,0.94109308,3223.2,3222.8,0.77566]
[1641922775935,0.94109308,3223.2,3222.5,1.56606901]
[1641922776135,0.94109308,3223.2,3222.9,0.01250532]
[1641922776339,0.4782898,3223.1,3222.8,0.77564]
[1641922776783,0.4782898,3223.1,3222.9,0.01250532]
[1641922776985,0.4782898,3223.1,3222.9,0.78815532]
[1641922777385,0.4782898,3223.1,3223.0,0.0119369]
[1641922778385,0.4782898,3223.1,3222.9,0.01250532]
[1641922780930,0.4782898,3223.1,3222.6,0.01421059]
[1641922783531,0.4782898,3223.1,3222.4,0.79113744]
[1641922783932,0.95411939,3222.7,3222.5,0.01477901]
[1641922784389,0.95411939,3222.7,3222.4,0.01534744]
[1641922785085,18.58018679,3222.6,3222.1,0.01705271]
[1641922785286,19.35623679,3222.6,3222.1,0.01705271]
[1641922785485,19.35623679,3222.6,3221.9,0.01818955]
[1641922785684,1.0,3222.5,3221.6,0.01989482]
[1641922785884,1.01038182,3221.8,3221.6,0.01989482]
[1641922786686,4.0148,3222.4,3221.6,0.01989482]
[1641922786687,0.50584752,3221.7,3221.6,0.01989482]
[1641922786892,4.0148,3222.4,3221.6,0.01989482]
[1641922787386,4.0148,3222.4,3221.6,5.39031947]
[1641922787588,4.0148,3222.4,3221.6,5.69031947]
[1641922787790,4.0148,3222.4,3221.7,0.0193264]
[1641922788034,0.52794333,3222.0,3221.8,0.7758]
[1641922788235,0.52794333,3222.0,3221.9,5.2015]
[1641922788532,0.52794333,3222.0,3221.9,5.21968955]
[1641922789539,4.0148,3222.4,3221.9,5.21968955]
[1641922789837,9.0148,3222.4,3222.0,0.01762113]
[1641922790038,9.0148,3222.4,3222.2,0.7758]
[1641922790435,5.59588483,3222.4,3222.3,0.01591586]
[1641922790637,6.57643993,3222.4,3222.3,0.01591586]
[1641922790836,6.57643993,3222.4,3222.2,0.01648428]
[1641922791238,6.57643993,3222.4,3222.1,0.01705271]
[1641922791879,5.59588483,3222.4,3222.1,0.01705271]
[1641922792481,5.59588483,3222.4,3222.1,1.09293271]
[1641922792882,5.59588483,3222.4,3222.2,0.01648428]
[1641922793082,0.96346623,3222.3,3222.2,0.01648428]
[1641922793481,0.96346623,3222.3,3222.1,1.04236428]
[1641922794282,0.96346623,3222.3,3222.1,1.81823428]
[1641922799690,5.59588483,3222.4,3222.1,1.81823428]
[1641922799898,5.59588483,3222.4,3222.2,0.05810368]
[1641922800090,5.59588483,3222.4,3222.1,1.81823428]
[1641922800893,5.0,3222.4,3222.2,0.6982089]
[1641922801094,4.1035,3223.2,3222.3,10.08742954]
[1641922801293,3.0786,3223.6,3222.5,1.55113]
[1641922801491,0.00511581,3223.1,3222.5,1.55113]
[1641922801693,0.00511581,3223.1,3222.6,0.3]
[1641922801892,0.45750114,3222.9,3222.6,0.3]
[1641922802094,0.45750114,3222.9,3222.7,0.77558]
[1641922802291,0.45750114,3222.9,3222.7,8.7727925]
[1641922802292,0.00341054,3222.8,3222.7,8.7727925]
[1641922802496,0.00341054,3222.8,3222.7,9.0727925]
[1641922803334,0.00341054,3222.8,3222.7,13.26156162]
[1641922803935,16.304,3224.0,3222.9,0.09601638]
[1641922803936,4.0753,3224.0,3222.9,0.09601638]
[1641922804140,4.0753,3224.0,3223.4,0.7754]
[1641922804337,0.00625265,3223.9,3223.5,0.447]
[1641922804737,0.00568423,3223.8,3223.5,0.747]
[1641922804939,6.96,3224.4,3223.6,8.02488866]
[1641922805145,3.8452,3224.8,3223.7,1.22237]
[1641922805341,3.8452,3224.8,3224.3,0.05528423]
[1641922805537,3.8452,3224.8,3224.1,2.32554]
[1641922805737,6.11,3225.0,3224.1,2.62554]
[1641922806039,0.52282733,3224.4,3224.3,0.77518]
[1641922806239,0.52282733,3224.4,3223.6,4.00201293]
[1641922806438,1.1183616,3224.2,3223.6,4.33050293]
[1641922806883,0.00170527,3224.1,3223.6,1.69024682]
[1641922807084,0.56121888,3223.8,3223.6,1.69024682]
[1641922807283,0.56121888,3223.8,3223.6,3.24115682]
[1641922807883,0.56121888,3223.8,3223.6,3.54115682]
[1641922808082,0.56121888,3223.8,3223.6,4.23905472]
[1641922808283,0.56121888,3223.8,3223.7,4.02545]
[1641922808486,0.56121888,3223.8,3223.7,6.66547569]
[1641922808684,0.00113685,3224.0,3223.7,6.66547569]
[1641922808885,0.00113685,3224.0,3223.8,0.84510609]
[1641922809085,0.00113685,3224.0,3223.8,2.32605]
[1641922809286,0.00113685,3224.0,3223.9,4.22535]
[1641922809883,0.54523357,3224.0,3223.9,4.22535]
[1641922810287,0.00113685,3224.0,3223.9,6.86537569]
[1641922811130,0.00113685,3224.0,3223.9,4.22535]
[1641922811329,0.00113685,3224.0,3223.9,4.69732865]
[1641922812131,0.00113685,3224.0,3223.9,7.33716736]
[1641922812530,0.00113685,3224.0,3223.9,3.41518871]
[1641922813733,0.00113685,3224.0,3223.9,1.31134568]
[1641922813932,0.00113685,3224.0,3223.9,1.61134568]
[1641922814181,0.00113685,3224.0,3223.9,3.97535]
[1641922814381,0.00113685,3224.0,3223.9,4.27535]
[1641922814583,0.00113685,3224.0,3223.9,3.97535]
[1641922814984,0.00113685,3224.0,3223.9,4.27535]
[1641922816583,0.00113685,3224.0,3223.9,6.91516295]
[1641922818440,0.00113685,3224.0,3223.9,3.71516295]
[1641922818635,0.00113685,3224.0,3223.9,2.93981295]
[1641922819034,0.00113685,3224.0,3223.9,2.63981295]
[1641922820034,0.00113685,3224.0,3223.8,1.07536]
[1641922820236,0.00113685,3224.0,3223.9,0.77541]
[1641922821035,0.00113685,3224.0,3223.8,0.77536]
[1641922821435,0.00113685,3224.0,3223.8,1.07536]
[1641922822079,0.00113685,3224.0,3223.9,3.17545]
[1641922822477,3.10113685,3224.0,3223.9,0.77545]
[1641922823879,3.10113685,3224.0,3223.9,3.27545]
[1641922824982,3.10113685,3224.0,3223.9,0.77545]
[1641922825182,4.10113685,3224.0,3223.6,0.00113685]
[1641922825440,1.06362907,3223.9,3223.6,0.00113685]
[1641922825635,2.06362907,3223.9,3223.5,0.00170527]
[1641922825836,1.06362907,3223.9,3223.5,0.00170527]
[1641922827738,1.06362907,3223.9,3223.6,0.04825202]
[1641922828138,1.06362907,3223.9,3223.6,0.77553]
[1641922829583,1.06362907,3223.9,3223.7,0.0783453]
[1641922829785,1.06362907,3223.9,3223.6,0.77553]
[1641922830382,6.06362907,3223.9,3223.6,0.77553]
[1641922831087,6.06362907,3223.9,3223.6,1.55105]
[1641922831284,4.72538474,3223.9,3223.6,1.55105]
[1641922831484,4.72538474,3223.9,3223.7,0.06379927]
[1641922831883,4.72538474,3223.9,3223.6,1.55105]
[1641922832194,0.93804304,3223.8,3223.6,0.77553]
[1641922833434,0.93804304,3223.8,3223.7,2.64025837]
[1641922838896,4.72538474,3223.9,3223.8,3.07546]
[1641922839692,4.72538474,3223.9,3223.8,0.77546]
[1641922840557,4.72538474,3223.9,3223.8,7.07799989]
[1641922841043,4.72538474,3223.9,3223.8,3.41571837]
[1641922841248,4.72538474,3223.9,3223.8,7.08554313]
[1641922841448,3.1,3224.0,3223.8,3.71571837]
[1641922841642,3.1,3224.0,3223.9,7.1613379]
[1641922842049,6.11,3225.4,3224.4,0.77517]
[1641922842245,6.11,3225.4,3224.7,0.06870494]
[1641922842445,6.11,3225.4,3224.3,1.85033]
[1641922842644,6.11,3225.4,3224.6,0.3]
[1641922842944,9.21,3225.4,3224.6,0.3]
[1641922843143,0.62523941,3225.2,3224.7,0.44335414]
[1641922843545,0.00738951,3225.1,3225.0,0.77508]
[1641922843748,0.00738951,3225.1,3225.0,1.07508]
[1641922843954,0.00852635,3225.3,3225.0,1.37508]
[1641922844387,0.00795793,3225.2,3225.0,1.37508]
[1641922844788,0.00852635,3225.3,3225.0,1.37508]
[1641922845186,0.00795793,3225.2,3225.0,1.37508]
[1641922845386,0.00795793,3225.2,3225.1,6.03768151]
[1641922845586,0.00852635,3225.3,3225.1,8.67793988]
[1641922845789,0.00795793,3225.2,3225.1,8.09016837]
[1641922846091,0.00852635,3225.2,3225.1,4.19016837]
[1641922847290,0.00852635,3225.2,3225.1,4.76008343]
[1641922847793,3.1,3225.4,3225.3,0.77476]
[1641922848061,3.1,3225.4,3225.3,13.01916579]
[1641922848261,5.169836,3226.6,3225.9,1.54957]
[1641922848460,5.169836,3226.6,3226.1,1.3945522]
[1641922848461,0.972036,3226.6,3226.1,1.3945522]
[1641922848661,0.39608007,3226.4,3226.3,0.05032113]
[1641922848859,0.39608007,3226.4,3226.3,0.82502113]
[1641922849065,0.39608007,3226.4,3226.3,0.77583684]
[1641922850961,0.38781896,3226.4,3226.3,0.77583684]
[1641922851566,0.87885708,3226.6,3226.3,0.77583684]
[1641922851788,0.87885708,3226.6,3226.4,0.77468]
[1641922851993,0.87885708,3226.6,3226.5,4.12468]
[1641922852191,0.87885708,3226.6,3226.5,1.07468]
[1641922852790,0.87885708,3226.6,3226.5,0.3]
[1641922854589,0.82885708,3226.6,3226.5,0.3]
[1641922855430,0.82885708,3226.6,3226.4,2.32403]
[1641922856437,9.9015556,3227.2,3226.4,2.32403]
[1641922856637,6.7399556,3227.2,3226.8,0.77468]
[1641922856940,0.00341055,3227.1,3226.8,1.37468]
[1641922857337,0.00284212,3227.0,3226.8,1.37468]
[1641922857536,0.00284212,3227.0,3226.9,6.70506456]
[1641922857737,6.7399556,3227.2,3227.0,0.85112308]
[1641922857933,6.7399556,3227.2,3227.0,0.77454]
[1641922858232,0.00341055,3227.1,3227.0,0.77454]
[1641922858837,0.83919649,3227.0,3226.8,1.07472]
[1641922859035,0.83919649,3227.0,3226.7,1.07468]
[1641922859287,0.0022737,3226.9,3226.7,1.07468]
[1641922859491,0.55015308,3226.8,3226.7,1.7718789]
[1641922859685,0.55185836,3226.8,3226.7,1.7718789]
[1641922860485,0.00170528,3226.8,3226.7,8.8965189]
[1641922861087,0.00170528,3226.8,3226.7,2.5465189]
[1641922861286,0.00170528,3226.8,3226.7,0.77464]
[1641922861489,0.00170528,3226.8,3226.3,0.03113684]
[1641922861490,1.16243485,3226.7,3226.3,0.03113684]
[1641922861885,1.1635717,3226.7,3226.3,0.03113684]
[1641922862287,0.61442176,3226.5,3226.3,0.03113684]
[1641922862487,0.61442176,3226.5,3226.3,0.06113684]
[1641922862934,0.61442176,3226.5,3226.3,0.83591684]
[1641922863335,0.61442176,3226.5,3226.4,4.7748]
[1641922864139,2.6253556,3227.2,3226.6,0.08563392]
[1641922864336,2.6253556,3227.2,3226.9,0.04646573]
[1641922864537,0.0022737,3227.1,3226.8,1.37455]
[1641922864745,0.0022737,3227.1,3226.8,0.77455]
[1641922864935,0.00170527,3227.0,3226.7,1.5491]
[1641922865137,0.44873071,3226.8,3226.7,1.5491]
[1641922865539,0.44873071,3226.8,3226.7,1.8491]
[1641922866539,0.44873071,3226.8,3226.7,4.9991]
[1641922866984,0.44873071,3226.8,3226.7,1.8491]
[1641922867292,0.44873071,3226.8,3226.6,0.3]
[1641922867482,0.44873071,3226.8,3226.5,1.07478]
[1641922867884,0.00113685,3226.9,3226.5,1.37478]
[1641922868084,0.00113685,3226.9,3226.6,3.72045281]
[1641922868286,2.6253556,3227.2,3226.7,6.997]
[1641922868486,2.6253556,3227.2,3226.9,0.6970247]
[1641922868685,0.00113685,3227.1,3227.0,6.57448]
[1641922869085,0.00113685,3227.1,3227.0,7.61650844]
[1641922869284,0.00113685,3227.1,3227.0,1.37448]
[1641922869484,0.00113685,3227.1,3227.0,3.77448]
[1641922869892,0.00113685,3227.1,3227.0,4.54893]
[1641922870532,0.00113685,3227.1,3227.0,1.84893]
[1641922873132,0.00113685,3227.1,3227.0,2.14893]
[1641922873334,0.00113685,3227.1,3227.0,4.94893]
[1641922874887,0.00113685,3227.1,3227.0,4.64893]
[1641922875491,3.9991,3228.1,3227.1,6.55]
[1641922875692,3.9991,3228.1,3227.6,0.77451]
[1641922875891,3.0,3228.8,3227.6,4.87477988]
[1641922876091,3.0,3228.8,3227.7,6.55]
[1641922876291,0.00568423,3228.1,3227.7,6.55]
[1641922876690,0.00511581,3228.0,3227.8,0.58734519]
[1641922876891,0.00511581,3228.0,3227.8,2.13578519]
[1641922877092,0.00454738,3227.9,3227.8,2.43578519]
[1641922877291,0.00454738,3227.9,3227.8,9.78430519]
[1641922878034,0.00454738,3227.9,3227.8,11.25553599]
[1641922880343,3.0,3228.8,3227.9,6.55]
[1641922880544,3.0,3228.8,3228.4,0.6967973]
[1641922880742,0.00454739,3228.7,3228.5,0.3]
[1641922880950,6.9897,3229.7,3228.8,0.04913815]
[1641922880951,3.8724,3229.7,3228.8,0.04913815]
[1641922881143,9.5019,3230.0,3228.9,2.76898]
[1641922881144,3.9437,3229.9,3228.9,2.76898]
[1641922881346,3.9437,3229.9,3229.0,0.447]
[1641922881544,0.922036,3229.5,3229.3,0.77402]
[1641922881799,0.922036,3229.5,3229.3,1.52016044]
[1641922881997,0.922036,3229.5,3229.4,7.05449066]
[1641922882204,0.922036,3229.5,3229.4,7.50149066]
[1641922882497,6.96,3230.1,3229.5,6.55]
[1641922882697,6.96,3230.1,3229.6,0.77391]
[1641922882909,0.00113685,3229.7,3229.6,0.77391]
[1641922883097,0.00113685,3229.7,3229.6,4.55940292]
[1641922883300,6.96,3230.1,3229.7,6.55]
[1641922883501,4.035,3230.5,3229.9,0.48683714]
[1641922883700,4.035,3230.5,3230.2,0.77381]
[1641922883701,1.02147483,3230.4,3230.2,0.77381]
[1641922883899,4.035,3230.5,3230.1,1.54761]
[1641922884100,0.00341054,3230.3,3230.1,1.54761]
[1641922884498,4.035,3230.5,3230.1,1.54761]
[1641922884499,0.00284211,3230.2,3230.1,1.54761]
[1641922885539,0.01996527,3230.2,3230.1,1.54761]
[1641922885738,0.01996527,3230.2,3230.1,1.84761]
[1641922885939,0.0033576,3230.6,3230.2,6.55]
[1641922886140,0.0033576,3230.6,3230.2,6.85]
[1641922886337,0.00113685,3230.4,3230.3,0.69642]
[1641922886937,0.00113685,3230.4,3230.3,5.17025]
[1641922888243,0.58137547,3230.4,3230.3,1.47025]
[1641922888838,0.58137547,3230.4,3230.3,0.77383]
[1641922889039,0.00113685,3230.4,3230.2,1.54747]
[1641922889310,0.00113685,3230.4,3230.2,1.49747]
[1641922889696,0.00113685,3230.4,3229.9,1.54777]
[1641922889895,0.00113685,3230.4,3229.5,0.69661]
[1641922890100,0.87653559,3230.3,3230.0,2.80113685]
[1641922890295,0.00113685,3230.4,3230.0,2.8]
[1641922891098,0.00113685,3230.4,3230.2,0.77388]
[1641922891294,0.00113685,3230.4,3230.1,0.08758144]
[1641922891295,0.55516423,3230.3,3230.0,2.8]
[1641922891699,0.02005043,3231.2,3230.1,3.67331132]
[1641922891899,0.0072601,3231.2,3230.3,1.39273]
[1641922892100,0.00397896,3231.1,3230.2,0.00113685]